bitfinex/quotes_ETHUSD_20251012
["timestamp","ask_amount","ask_price","bid_price","bid_amount"]
[1760304831207,0.28,4100.2,4099.1,2.43954767]
[1760304831208,4.85569,4100.2,4099.1,2.43954767]
[1760304831450,1.92,4100.4,4098.3,0.4318]
[1760304831608,2.43887651,4100.3,4098.3,0.4318]
[1760304831813,4.85569,4100.7,4098.3,0.4318]
[1760304832010,4.85569,4100.7,4098.4,2.43997657]
[1760304832352,4.85569,4100.7,4098.1,0.2297]
[1760304832353,4.85569,4100.8,4098.5,0.4318]
[1760304832642,4.85569,4100.7,4099.5,2.43926427]
[1760304833005,1.92,4100.4,4099.5,2.43926427]
[1760304833224,1.92,4100.0,4099.5,2.43926427]
[1760304833424,1.92,4100.2,4099.5,2.43926427]
[1760304833425,4.85569,4099.9,4099.5,2.43926427]
[1760304833623,1.92,4100.2,4099.2,2.43944531]
[1760304833812,1.92,4100.2,4098.6,0.6336]
[1760304833813,4.510865,4099.9,4098.6,0.6336]
[1760304834049,4.85569,4099.9,4099.6,0.1216]
[1760304834436,4.85569,4099.9,4098.1,0.2297]
[1760304834437,4.85569,4099.9,4098.8,2.43972559]
[1760304834736,4.85569,4099.8,4098.8,2.43971919]
[1760304834920,4.85569,4099.7,4098.4,0.6336]
[1760304835123,4.85569,4099.3,4097.9,0.4318]
[1760304835334,2.43939138,4099.4,4097.0,0.003]
[1760304835335,1.92,4099.0,4097.0,0.003]
[1760304835512,7.547682,4098.7,4097.0,2.4437675]
[1760304835717,1.92,4098.7,4097.0,0.003]
[1760304835920,4.85569,4098.6,4097.0,0.003]
[1760304836228,4.85569,4098.0,4097.0,0.003]
[1760304836820,4.85569,4097.7,4097.0,0.003]
[1760304837948,4.85569,4097.6,4097.0,0.003]
[1760304838319,6.77569,4097.9,4097.0,0.003]
[1760304838523,4.85569,4097.4,4097.0,0.003]
[1760304838835,7.2963812,4097.2,4097.1,0.00289668]
[1760304839337,9.2163812,4097.2,4097.1,0.00289668]
[1760304839672,13.9522252,4097.2,4097.1,0.00289668]
[1760304839822,2.44128704,4096.2,4096.1,0.007]
[1760304840019,1.92,4096.4,4096.1,0.007]
[1760304840215,1.92,4096.4,4094.1,0.005]
[1760304840216,6.8906185,4095.2,4094.1,0.005]
[1760304840421,6.76279332,4095.2,4094.1,0.005]
[1760304840721,9.3048765,4095.2,4094.1,0.005]
[1760304840918,11.3398985,4095.2,4094.1,0.005]
[1760304841125,4.83779332,4094.6,4094.1,0.005]
[1760304841319,2.4424796,4094.2,4094.1,0.005]
[1760304841580,4.83279332,4094.0,4093.1,0.005]
[1760304841757,2.0202,4094.1,4093.1,0.005]
[1760304841931,1.92,4093.9,4093.8,2.44271825]
[1760304842131,0.1002,4095.1,4094.2,2.44242084]
[1760304842132,1.92,4094.9,4094.2,2.44242084]
[1760304842333,1.92,4094.7,4093.1,0.005]
[1760304842539,1.92,4094.0,4093.1,0.005]
[1760304842733,4.83279332,4093.9,4093.1,0.005]
[1760304842941,4.83279332,4095.2,4093.4,0.6336]
[1760304843134,4.83279332,4095.7,4093.6,0.6336]
[1760304843434,2.44176655,4095.4,4093.8,2.44266794]
[1760304843644,1.92,4095.2,4093.9,2.44265266]
[1760304843850,1.92,4095.2,4093.6,0.6336]
[1760304843851,4.83279332,4095.1,4093.6,0.6336]
[1760304844361,4.83279332,4095.1,4094.6,0.1216]
[1760304844725,1.92,4094.8,4094.6,0.1216]
[1760304844925,1.92,4094.8,4093.6,0.6336]
[1760304845147,4.83279332,4094.6,4093.6,0.6336]
[1760304845378,4.83279332,4094.4,4094.3,2.44241994]
[1760304845579,4.83279332,4094.4,4093.6,0.6336]
[1760304845778,4.83279332,4094.2,4093.9,2.44262577]
[1760304846094,4.83279332,4094.2,4093.6,0.6336]
[1760304846256,4.83279332,4094.0,4093.6,2.44277828]
[1760304846457,4.83279332,4093.8,4093.7,2.44277792]
[1760304846659,4.83279332,4093.8,4093.1,0.005]
[1760304846907,2.4428659,4093.6,4093.1,0.005]
[1760304847072,1.92,4093.2,4093.1,0.005]
[1760304847393,20.68298464,4093.2,4093.1,0.005]
[1760304847595,6.85179332,4093.2,4093.1,0.005]
[1760304847895,6.85179332,4093.2,4093.1,0.00408895]
[1760304848099,9.29486964,4093.2,4091.9,2.44383293]
[1760304848398,1.92,4092.8,4090.9,2.87624549]
[1760304848601,4.83279332,4092.5,4091.6,2.44397241]
[1760304848766,4.83279332,4092.5,4092.0,2.44378282]
[1760304848966,4.83279332,4092.5,4091.0,2.44756451]
[1760304849280,4.83279332,4092.5,4091.0,0.00318437]
[1760304849456,4.83279332,4092.3,4091.0,0.00318437]
[1760304849662,4.83279332,4092.2,4091.0,2.44756302]
[1760304849863,4.83279332,4092.2,4091.5,2.44408006]
[1760304850175,4.83279332,4092.2,4091.0,0.00318437]
[1760304850377,4.83279332,4092.2,4091.0,2.44756467]
[1760304850704,4.83279332,4092.2,4091.5,2.44407351]
[1760304850857,4.83279332,4092.2,4091.8,2.44387583]
[1760304851059,4.83279332,4092.2,4091.2,2.44427062]
[1760304851296,4.83279332,4092.2,4091.1,0.6386]
[1760304851869,4.83279332,4092.2,4091.2,2.44427062]
[1760304852074,4.83279332,4092.2,4091.9,2.44384442]
[1760304852277,1.92,4092.3,4091.1,3.08291724]
[1760304852278,1.92,4092.9,4091.7,2.44391756]
[1760304852497,1.92,4092.5,4091.1,1.0986]
[1760304852807,4.83279332,4092.4,4091.9,2.44384531]
[1760304853021,4.83279332,4092.4,4091.1,3.54292973]
[1760304853189,9.83060984,4093.8,4092.0,0.46]
[1760304853385,0.099,4094.3,4092.0,0.46]
[1760304853386,7.27788632,4093.7,4092.0,0.46]
[1760304853582,7.27660132,4093.8,4092.0,0.46]
[1760304853781,7.14481632,4093.8,4092.0,0.46]
[1760304854045,1.92,4093.4,4092.4,2.44350578]
[1760304854185,1.92,4093.0,4092.0,0.46]
[1760304854392,4.83279332,4092.9,4092.4,2.44353766]
[1760304854581,1.92,4093.3,4091.6,3.07757912]
[1760304854786,4.83279332,4093.0,4092.5,0.1216]
[1760304855026,4.83279332,4093.0,4091.7,2.4439468]
[1760304855027,2.44338015,4092.7,4091.7,2.4439468]
[1760304855221,4.83279332,4092.6,4092.0,0.1216]
[1760304855534,4.83279332,4092.6,4091.8,2.44389825]
[1760304855696,4.83279332,4092.7,4091.1,0.6386]
[1760304855886,1.92,4093.1,4091.8,2.44386129]
[1760304856092,1.92,4092.5,4091.1,0.6386]
[1760304856287,4.83279332,4092.2,4091.1,0.005]
[1760304856616,4.83279332,4092.1,4091.1,0.005]
[1760304856798,2.44379276,4092.0,4091.9,0.002]
[1760304857001,7.27658608,4092.0,4091.9,0.002]
[1760304857224,4.83279332,4092.0,4091.9,0.002]
[1760304857394,1.92,4092.1,4091.9,0.002]
[1760304857591,1.92,4092.7,4091.9,0.002]
[1760304857889,1.92,4093.0,4091.9,2.44584335]
[1760304858088,1.92,4092.6,4092.1,2.44368687]
[1760304858288,4.83279332,4092.5,4092.1,2.44368687]
[1760304858724,4.83279332,4092.5,4092.0,2.44378546]
[1760304858889,4.83279332,4092.5,4091.9,0.002]
[1760304859089,4.83279332,4093.1,4091.9,0.002]
[1760304859296,4.83279332,4092.9,4092.2,2.44363024]
[1760304859494,4.83279332,4092.9,4092.1,2.44372686]
[1760304859697,4.83279332,4092.9,4092.3,2.44361219]
[1760304859892,4.83279332,4092.9,4091.9,0.002]
[1760304860430,4.83279332,4092.9,4092.0,2.44379276]
[1760304860820,4.83279332,4092.9,4091.9,0.002]
[1760304861395,4.83279332,4092.7,4091.9,0.002]
[1760304861614,4.83279332,4092.5,4091.9,2.4458442]
[1760304861843,4.83279332,4092.5,4091.9,0.002]
[1760304862441,1.92,4092.0,4091.9,0.002]
[1760304862596,6.75279332,4092.0,4091.9,0.002]
[1760304863937,4.83279332,4093.1,4092.3,2.44356513]
[1760304864435,1.92,4092.6,4091.9,0.002]
[1760304864727,0.948906,4092.3,4092.2,2.44367332]
[1760304864928,4.83279332,4092.8,4092.2,2.44367332]
[1760304865106,4.83279332,4092.8,4090.3,0.003]
[1760304865313,0.1802,4091.2,4090.3,0.003]
[1760304865512,0.12772794,4092.5,4091.6,2.44403167]
[1760304865513,0.1216,4091.7,4091.6,2.44403167]
[1760304865691,4.82960895,4093.2,4091.6,0.46]
[1760304865994,4.82960895,4094.3,4091.6,0.46]
[1760304866195,7.27203735,4094.3,4091.6,0.46]
[1760304866420,4.82960895,4094.0,4091.7,0.6336]
[1760304866630,0.1,4094.4,4091.7,0.6336]
[1760304866631,4.82960895,4094.3,4091.8,0.46]
[1760304866841,4.82960895,4094.3,4092.7,0.6336]
[1760304866994,4.82960895,4094.3,4094.2,2.4424796]
[1760304867200,4.82960895,4094.3,4094.2,2.9024796]
[1760304867599,4.82960895,4094.3,4094.2,2.8974796]
[1760304868010,0.001,4094.4,4094.3,3.07601994]
[1760304868247,0.001,4094.4,4094.3,3.53601994]
[1760304868614,0.005,4095.9,4095.8,2.44152546]
[1760304869062,0.005,4095.9,4095.8,3.53512546]
[1760304869562,1e-08,4095.9,4095.8,3.53512546]
[1760304869717,0.005,4097.9,4095.8,1.0936]
[1760304869913,0.005,4097.9,4096.8,3.3092295]
[1760304870456,0.005,4097.9,4097.8,2.44033383]
[1760304870954,0.005,4097.9,4097.8,2.90033383]
[1760304872044,0.005,4097.9,4097.8,3.53393383]
[1760304872218,1e-08,4097.9,4097.8,3.53393383]
[1760304873446,0.006,4099.9,4098.1,0.6336]
[1760304873648,0.006,4099.9,4099.8,3.30784337]
[1760304873819,0.005,4100.9,4098.1,0.6336]
[1760304874014,0.005,4100.9,4099.3,0.6336]
[1760304874214,0.005,4100.9,4100.3,2.43884593]
[1760304874658,0.005,4100.9,4100.3,2.90644593]
[1760304874856,0.005,4100.9,4100.3,3.54004593]
[1760304875151,0.005,4100.9,4100.5,0.6336]
[1760304875351,0.005,4100.9,4100.8,3.07214857]
[1760304875756,0.005,4100.9,4100.8,3.66134857]
[1760304876348,0.005,4101.9,4101.8,3.07155406]
[1760304876869,0.005,4102.9,4102.8,2.43735985]
[1760304877215,0.005,4102.9,4102.8,3.53855985]
[1760304878141,0.005,4103.9,4103.1,0.6336]
[1760304878324,0.005,4103.9,4103.2,2.43712008]
[1760304878659,0.005,4103.9,4103.8,2.43676592]
[1760304878956,0.005,4103.9,4102.9,0.4676]
[1760304878957,0.005,4103.9,4103.0,0.6336]
[1760304879456,0.005,4103.9,4103.4,2.4369969]
[1760304879625,0.005,4103.9,4103.0,0.6336]
[1760304879962,0.005,4103.9,4103.5,2.43693561]
[1760304880320,0.005,4103.9,4103.6,2.43684168]
[1760304880542,0.005,4103.9,4103.2,0.6336]
[1760304880860,0.005,4103.9,4103.8,2.43676592]
[1760304881520,0.005,4103.9,4103.8,2.90766592]
[1760304882351,0.005,4103.9,4103.8,3.54126592]
[1760304883831,1e-08,4103.9,4103.8,3.54126592]
[1760304886736,1e-08,4103.9,4103.8,3.66286592]
[1760304888258,1e-08,4103.9,4103.8,3.02926592]
[1760304888663,1e-08,4103.9,4103.8,2.55836592]
[1760304888865,1e-08,4103.9,4103.8,2.87006592]
[1760304889164,1e-08,4103.9,4103.5,2.43694077]
[1760304889365,1e-08,4103.9,4103.3,2.43706285]
[1760304889547,1e-08,4103.9,4103.2,2.87041727]
[1760304889746,1e-08,4103.9,4103.2,0.4333]
[1760304890084,1e-08,4103.9,4103.3,0.6336]
[1760304890632,1e-08,4103.9,4103.2,0.4333]
[1760304890831,1e-08,4103.9,4102.6,0.4333]
[1760304891767,1e-08,4103.9,4102.8,2.43735985]
[1760304891973,1e-08,4103.9,4103.7,2.43681599]
[1760304892156,1e-08,4103.9,4103.5,2.43690272]
[1760304892355,1e-08,4103.9,4103.4,2.43699157]
[1760304892556,1e-08,4103.9,4103.4,2.43700087]
[1760304892873,1e-08,4103.9,4103.1,2.43718164]
[1760304893186,1e-08,4103.9,4103.0,2.43724104]
[1760304893351,0.00100001,4103.9,4103.8,2.43676592]
[1760304893552,0.00100001,4103.9,4103.8,3.07036592]
[1760304893777,0.00100001,4103.9,4103.8,3.50366592]
[1760304895550,0.00100001,4103.9,4103.8,4.51366592]
[1760304895754,0.005,4105.9,4103.9,3.07030654]
[1760304895953,2.4338029,4108.8,4103.9,3.07030654]
[1760304895954,0.099,4108.2,4105.8,0.8681]
[1760304896278,0.1322509,4108.9,4106.8,2.43498587]
[1760304896279,0.099,4108.5,4106.8,2.43498587]
[1760304896441,2.43404989,4108.4,4106.8,2.43498587]
[1760304896640,0.099,4108.5,4106.8,2.86828587]
[1760304897242,0.005,4108.9,4106.8,3.50188587]
[1760304897477,2.43386562,4108.7,4106.8,3.50188587]
[1760304897654,0.005,4108.9,4106.8,2.86828587]
[1760304898008,1.92,4108.8,4106.8,2.86828587]
[1760304898145,2.019,4108.5,4106.8,2.43498587]
[1760304898346,2.43428494,4108.0,4106.8,2.43498587]
[1760304898841,0.1266,4107.9,4106.8,2.55658587]
[1760304899239,0.005,4107.9,4106.8,2.98988587]
[1760304899464,0.005,4107.9,4106.8,3.62348587]
[1760304900057,0.09900001,4106.9,4104.7,2.43622671]
[1760304900256,2.43509837,4106.7,4105.5,2.43570584]
[1760304900453,2.43512259,4106.6,4105.5,2.43570584]
[1760304900653,3.366,4106.8,4104.8,0.4333]
[1760304900891,2.43523004,4106.4,4105.4,2.43576015]
[1760304901047,2.43516628,4106.5,4105.5,2.43575057]
[1760304901241,2.43511245,4106.6,4105.5,2.43575057]
[1760304901478,2.43504799,4106.7,4105.7,2.43563705]
[1760304901646,2.43512932,4106.6,4105.6,2.43569121]
[1760304901880,2.43504517,4106.7,4105.7,2.43563597]
[1760304902120,2.43510831,4106.6,4105.7,2.43563597]
[1760304902283,2.43505199,4106.7,4105.7,2.43563597]
[1760304902618,2.43498587,4106.8,4105.7,2.43563597]
[1760304902829,2.43519299,4106.5,4105.6,2.43569264]
[1760304903036,2.43510869,4106.6,4104.8,0.4333]
[1760304903191,0.09900001,4106.9,4104.9,2.43611293]
[1760304903388,2.43506374,4106.7,4105.8,2.43557684]
[1760304903605,2.43504517,4106.7,4104.8,0.4333]
[1760304903811,2.43517965,4106.5,4105.6,2.4356774]
[1760304903992,0.09900001,4106.9,4104.9,2.43611293]
[1760304904207,0.09900001,4106.9,4105.6,2.43569035]
[1760304904208,2.43518655,4106.5,4105.6,2.43569035]
[1760304904411,2.43518603,4106.5,4105.6,2.43568695]
[1760304904582,2.43510732,4106.6,4105.8,2.43556302]
[1760304905200,2.43505391,4106.7,4105.8,2.43556302]
[1760304905399,2.43512534,4106.6,4105.8,2.43556302]
[1760304905598,0.09900001,4106.9,4106.0,2.43540194]
[1760304906204,0.09900001,4106.9,4104.9,2.43611293]
[1760304906490,0.09900001,4106.9,4106.2,2.43534076]
[1760304906685,0.09900001,4106.9,4104.9,2.43611293]
[1760304907028,1e-08,4106.9,4106.7,2.43503451]
[1760304907192,1e-08,4106.9,4105.8,0.4333]
[1760304907390,1e-08,4106.9,4105.9,2.43551961]
[1760304907599,1e-08,4106.9,4106.8,2.43498587]
[1760304908410,1e-08,4106.9,4105.8,0.4333]
[1760304908736,1e-08,4106.9,4106.7,2.43499445]
[1760304908956,1e-08,4106.9,4106.0,2.4354603]
[1760304909238,1e-08,4106.9,4106.7,2.43501812]
[1760304909433,1e-08,4106.9,4105.8,0.4333]
[1760304909643,1e-08,4106.9,4106.8,2.43498587]
[1760304910803,1e-08,4106.9,4106.8,2.55658587]
[1760304911637,1e-08,4106.9,4106.8,2.90278587]
[1760304911855,0.005,4107.9,4106.8,3.53638587]
[1760304912008,0.005,4107.9,4107.8,2.4343931]
[1760304912551,0.005,4107.9,4107.8,2.9021931]
[1760304912912,1e-08,4107.9,4107.8,2.9021931]
[1760304913151,1e-08,4107.9,4107.8,3.5357931]
[1760304914183,1e-08,4108.9,4108.8,3.06740062]
[1760304914575,1e-08,4108.9,4108.8,3.53520062]
[1760304919346,0.001,4112.1,4109.2,2.43354741]
[1760304919575,0.001,4112.1,4108.9,0.4678]
[1760304919752,0.1114,4111.8,4109.2,0.6336]
[1760304919970,0.001,4112.1,4109.4,3.06704527]
[1760304920189,0.001,4112.1,4109.8,0.6336]
[1760304920391,0.001,4112.1,4109.6,2.5536]
[1760304920726,0.001,4112.1,4109.4,0.6336]
[1760304920911,0.001,4112.1,4111.5,2.43219784]
[1760304921231,0.001,4112.1,4110.8,0.6336]
[1760304921386,0.001,4112.1,4111.7,2.43205762]
[1760304921583,0.001,4112.1,4111.7,2.55363989]
[1760304922013,0.001,4112.1,4111.8,2.4320249]
[1760304922193,0.001,4112.1,4111.7,0.1216]
[1760304922387,0.001,4112.1,4111.8,2.4320249]
[1760304922799,0.001,4112.1,4111.7,0.1216]
[1760304922800,0.001,4112.1,4111.7,2.55367634]
[1760304923098,0.001,4112.1,4111.8,2.5528249]
[1760304923718,1e-08,4111.9,4111.8,3.5334249]
[1760304927197,1e-08,4112.9,4112.4,3.06527007]
[1760304927402,1e-08,4112.9,4112.8,3.29623357]
[1760304927820,1e-08,4112.9,4112.8,3.76403357]
[1760304930603,1e-08,4112.9,4112.8,2.43143357]
[1760304931036,1e-08,4112.9,4112.6,2.43149498]
[1760304931300,1e-08,4112.9,4112.5,2.43158938]
[1760304931542,1e-08,4112.9,4112.6,2.4315062]
[1760304931723,1e-08,4112.9,4112.0,0.4678]
[1760304932117,0.00100001,4112.9,4112.1,2.43180536]
[1760304932440,2.083,4112.0,4111.2,2.43232812]
[1760304932618,1.92,4112.3,4111.2,2.43232812]
[1760304932831,2.43208983,4111.7,4110.4,0.4678]
[1760304933155,1.92,4111.6,4109.8,0.4678]
[1760304933342,2.082064,4111.2,4110.3,2.43286263]
[1760304933644,1.92,4111.2,4110.9,0.1216]
[1760304933949,1.92,4111.4,4110.9,0.1216]
[1760304934248,2.43249431,4111.1,4110.9,0.1216]
[1760304935812,2.43249817,4111.0,4110.9,0.1216]
[1760304936014,4.35232456,4111.3,4110.9,0.1216]
[1760304936323,4.35232456,4111.3,4109.3,2.4355009]
[1760304936324,0.0992,4111.0,4109.3,2.4355009]
[1760304936545,2.43280524,4110.5,4109.6,2.43327307]
[1760304936710,1.92,4110.8,4109.3,0.002]
[1760304936919,2.43285279,4110.5,4109.3,0.002]
[1760304937265,2.0192,4111.0,4109.3,2.43549864]
[1760304937576,2.43315599,4109.9,4109.3,0.002]
[1760304937874,1.92,4110.3,4109.3,0.002]
[1760304938022,2.43315614,4109.9,4109.3,0.002]
[1760304938446,2.43320188,4109.9,4109.3,0.002]
[1760304938666,2.43316971,4109.9,4109.3,0.002]
[1760304938962,2.43332762,4109.6,4109.3,0.002]
[1760304939271,0.2856,4110.0,4109.3,0.002]
[1760304939502,4.35344527,4109.4,4109.3,0.002]
[1760304939669,2.43397833,4108.5,4108.4,0.001]
[1760304939867,17.80390107,4108.5,4106.1,0.005]
[1760304940093,6.56239607,4108.2,4106.1,0.2231]
[1760304940292,6.56239607,4108.2,4106.5,2.43515194]
[1760304940462,6.65939607,4108.2,4106.5,2.43515194]
[1760304940654,4.45115607,4108.2,4106.1,0.2231]
[1760304940860,6.66039507,4108.2,4106.1,0.005]
[1760304941158,0.097,4108.5,4106.6,0.4653]
[1760304941363,1.92,4108.4,4106.7,0.6336]
[1760304941560,0.097,4108.4,4107.4,2.43462502]
[1760304941764,4.35415607,4108.2,4106.7,0.6336]
[1760304941960,4.35415607,4108.2,4106.1,0.005]
[1760304942167,13.87234307,4108.2,4106.1,0.005]
[1760304942464,7.80431207,4108.2,4106.6,2.43505606]
[1760304942677,7.80431207,4108.2,4106.7,2.43502215]
[1760304942988,7.36711207,4108.2,4106.7,2.43502215]
[1760304943297,7.36711207,4108.2,4106.1,0.005]
[1760304943473,7.36711207,4108.2,4106.6,2.43507627]
[1760304943670,7.36711207,4108.2,4106.1,0.6386]
[1760304943877,7.36711207,4108.2,4106.4,2.43517099]
[1760304944194,4.45115607,4108.2,4106.6,2.43508022]
[1760304944394,8.70041507,4108.2,4106.6,2.43508022]
[1760304944594,7.72542807,4108.2,4106.7,2.43502777]
[1760304945378,9.58908707,4108.2,4106.7,2.43503555]
[1760304945897,4.45115607,4108.2,4106.4,0.6336]
[1760304946266,0.1216,4108.3,4107.6,0.1216]
[1760304946876,0.1216,4108.3,4107.7,2.43443962]
[1760304947077,0.097,4108.8,4106.7,0.6336]
[1760304947305,0.1216,4108.6,4107.9,0.1216]
[1760304948002,2.43387573,4108.7,4107.9,2.43432218]
[1760304948180,2.43376618,4108.9,4107.9,2.43432218]
[1760304948379,1.92,4109.3,4107.8,2.43433616]
[1760304948693,2.43403402,4108.5,4107.7,2.43444351]
[1760304949104,0.097,4108.4,4107.1,0.005]
[1760304949304,11.66037207,4108.2,4107.1,0.005]
[1760304949673,7.24146707,4108.2,4107.1,0.005]
[1760304950004,7.24146707,4108.2,4108.1,0.007]
[1760304950172,4.45115607,4108.2,4108.1,0.007]
[1760304950372,7.17291307,4108.2,4108.1,0.007]
[1760304951394,4.45115607,4108.2,4108.1,0.007]
[1760304951594,1.92,4108.2,4108.1,0.007]
[1760304951907,0.3797646,4109.0,4108.1,0.007]
[1760304951908,0.12318277,4109.6,4108.1,0.007]
[1760304952223,2.53045333,4109.4,4108.1,0.007]
[1760304952391,4.35350448,4109.3,4108.5,2.43393288]
[1760304952720,4.35350448,4109.3,4108.1,0.007]
[1760304952721,1.92,4109.3,4108.7,2.43384392]
[1760304952920,4.35351245,4109.3,4108.5,2.43393398]
[1760304953218,1.92,4109.3,4108.5,2.43393398]
[1760304953415,1.92,4109.3,4108.6,2.43390733]
[1760304953571,1.92,4109.3,4108.5,2.43396302]
[1760304953772,4.35350931,4109.3,4108.1,0.007]
[1760304954121,2.256971,4109.0,4108.1,0.007]
[1760304954413,2.43380062,4108.8,4108.1,0.007]
[1760304954573,2.665134,4108.3,4108.1,0.006]
[1760304954770,6.43503607,4108.2,4108.1,0.005]
[1760304955004,4.35415607,4108.2,4108.1,0.005]
[1760304955306,4.44915607,4108.2,4108.1,0.005]
[1760304955682,6.65615607,4108.2,4108.1,0.005]
[1760304955870,4.44915607,4108.2,4108.1,0.005]
[1760304956794,6.95155507,4108.2,4108.1,0.005]
[1760304957195,7.98666607,4108.2,4108.1,0.005]
[1760304957907,2.015,4108.2,4108.1,0.005]
[1760304958309,4.44915607,4108.2,4108.1,0.005]
[1760304959218,4.39915607,4108.2,4108.1,0.005]
[1760304959741,2.748977,4108.0,4107.6,0.002]
[1760304960040,10.50504545,4107.3,4107.2,0.002]
[1760304960249,8.070356,4107.3,4106.1,0.005]
[1760304960537,11.61796667,4106.2,4106.1,0.005]
[1760304960840,2.43534167,4106.2,4106.1,0.005]
[1760304961330,4.44244167,4106.2,4106.1,0.005]
[1760304961623,4.35534167,4106.2,4106.1,0.005]
[1760304961832,4.44244167,4106.2,4106.1,0.005]
[1760304962216,1.92,4106.2,4106.1,0.005]
[1760304962412,2.0071,4106.2,4106.1,0.005]
[1760304963309,1.92,4106.2,4106.1,0.005]
[1760304964796,4.44244167,4106.2,4106.1,0.005]
[1760304965004,7.92310667,4106.2,4106.1,0.005]
[1760304965208,7.68310667,4106.2,4106.1,0.005]
[1760304965715,4.44244167,4106.2,4106.1,0.005]
[1760304966120,2.0071,4106.2,4106.1,0.005]
[1760304966321,6.56286167,4106.2,4106.1,0.005]
[1760304966751,6.89526867,4106.2,4106.1,0.005]
[1760304966921,4.44244167,4106.2,4106.1,0.007]
[1760304967338,1.92,4106.2,4106.1,0.007]
[1760304968106,2.0071,4106.2,4106.1,0.007]
[1760304968312,0.1216,4106.4,4106.1,0.007]
[1760304968525,0.1216,4106.4,4106.3,2.43528237]
[1760304969326,0.1216,4106.4,4106.2,2.43533175]
[1760304969727,0.1216,4106.4,4106.1,2.44238876]
[1760304970036,0.1216,4106.4,4106.1,0.007]
[1760304970234,0.1216,4106.4,4106.2,2.43529872]
[1760304970810,0.1216,4106.4,4106.2,2.43534167]
[1760304971248,0.1216,4106.4,4106.1,2.44239951]
[1760304971454,0.1216,4106.4,4106.3,2.43528237]
[1760304972062,0.001,4108.4,4106.3,2.43528237]
[1760304972063,0.1216,4106.8,4106.5,2.4351461]
[1760304972348,0.1216,4106.8,4106.2,0.6336]
[1760304972653,0.1216,4107.1,4106.9,2.43489966]
[1760304972828,0.1216,4107.1,4107.0,2.43486729]
[1760304973435,15.80409689,4108.1,4106.7,2.4350069]
[1760304973671,2.43486992,4107.0,4106.1,0.007]
[1760304973859,0.1216,4106.3,4106.1,0.007]
[1760304974241,0.1216,4106.3,4106.1,2.44238477]
[1760304974444,0.1216,4106.3,4106.1,0.007]
[1760304974652,0.1216,4106.3,4106.1,2.44239226]
[1760304975064,0.1216,4106.3,4106.1,0.007]
[1760304975268,0.1216,4106.3,4106.2,2.43534167]
[1760304975471,0.1216,4106.3,4106.1,0.007]
[1760304975775,0.1216,4106.3,4106.2,2.43534167]
[1760304976238,0.0871,4107.3,4106.5,2.43511994]
[1760304976439,0.1216,4106.8,4106.7,2.43504517]
[1760304976644,2.52161237,4107.6,4106.7,2.43499767]
[1760304976875,0.1216,4107.1,4106.4,0.1216]
[1760304977105,0.1216,4107.1,4106.9,2.43491374]
[1760304977289,0.1216,4107.1,4107.0,2.43486729]
[1760304977445,0.1216,4107.1,4106.4,0.1216]
[1760304977646,2.43433795,4107.9,4106.5,0.6336]
[1760304977848,0.1216,4107.4,4106.7,0.1216]
[1760304978089,0.2087,4107.4,4106.9,2.43491996]
[1760304978376,0.1216,4107.1,4106.6,2.43504773]
[1760304978541,0.1216,4107.1,4106.5,2.55676131]
[1760304978871,0.1216,4107.1,4106.5,0.1216]
[1760304979177,0.1216,4107.1,4106.5,2.55674229]
[1760304979375,0.1216,4107.1,4106.7,2.43504452]
[1760304979580,0.1216,4107.1,4106.5,0.1216]
[1760304979876,0.1216,4107.1,4106.7,2.43501827]
[1760304981361,0.1216,4107.1,4106.8,2.43498003]
[1760304982490,0.1216,4107.1,4106.9,2.43491767]
[1760304983493,0.1216,4107.1,4107.0,2.43486729]
[1760304984194,2.43434869,4107.9,4107.1,2.43475923]
[1760304984402,0.1216,4107.5,4107.2,2.43474099]
[1760304984978,0.2087,4107.5,4107.2,2.43474099]
[1760304985307,0.2087,4107.5,4107.1,2.43479877]
[1760304985602,0.2087,4107.5,4107.0,2.43485986]
[1760304985898,0.1216,4107.5,4107.1,2.43478822]
[1760304986099,0.1226,4107.5,4107.1,2.43478822]
[1760304986461,0.1226,4107.5,4107.2,2.43474677]
[1760304986661,0.2097,4107.5,4107.2,2.43474677]
[1760304986902,0.2097,4107.5,4106.9,2.43492624]
[1760304986903,0.001,4107.5,4107.4,3.06823017]
[1760304987088,0.001,4107.5,4107.4,3.51513017]
[1760304987468,2.4335505,4109.3,4108.3,2.43409682]
[1760304987801,2.43345594,4109.4,4108.3,2.43409682]
[1760304988100,2.43352274,4109.3,4108.3,2.88099682]
[1760304988680,2.43820011,4109.9,4108.3,3.51459682]
[1760304988878,0.005,4109.9,4108.3,3.51459682]
[1760304989713,0.005,4109.9,4108.3,16.88459689]
[1760304989931,0.38670822,4110.9,4109.4,0.6336]
[1760304990086,0.005,4110.9,4110.8,2.43261652]
[1760304990287,0.005,4110.9,4110.8,3.06621652]
[1760304990627,0.005,4110.9,4110.8,3.51311652]
[1760304991287,0.1041,4110.9,4109.0,0.4469]
[1760304991491,0.1041,4110.9,4109.1,0.6336]
[1760304991687,2.43263802,4110.8,4109.5,0.6336]
[1760304991886,4.35268439,4110.7,4109.3,0.6336]
[1760304992132,2.43262794,4110.8,4109.7,0.6336]
[1760304992290,0.005,4110.9,4109.8,0.6336]
[1760304992488,0.005,4110.9,4108.9,0.4469]
[1760304992716,0.005,4110.9,4109.1,0.6336]
[1760304992921,0.005,4110.9,4110.4,2.43285136]
[1760304993420,0.005,4110.9,4110.0,0.6336]
[1760304993821,0.005,4110.9,4110.2,0.6336]
[1760304994026,2.43756802,4110.9,4110.2,0.6336]
[1760304994197,2.43756802,4110.9,4110.2,2.43296443]
[1760304994398,0.005,4110.9,4108.9,0.4469]
[1760304994615,2.43287898,4110.4,4108.9,0.4469]
[1760304995020,0.005,4110.9,4108.9,0.4469]
[1760304995191,0.005,4110.9,4109.0,3.06726638]